fUSD/lending_fUSD_20240719
["ID","MTS","AMOUNT","RATE_DAILY","PERIOD"]
[332636556,1721387433433,-168.5,0.00017466,2]
[332636557,1721387433443,-168.5,0.0001747,2]
[332636558,1721387433452,-168.5,0.00017475,2]
[332636559,1721387433462,-168.5,0.00017479,2]
[332636560,1721387433471,-168.5,0.00017484,2]
[332636561,1721387433480,-168.5,0.00017489,2]
[332636562,1721387433490,-168.5,0.00017493,2]
[332636563,1721387433499,-587.0,0.00017579,2]
[332636564,1721387433509,-544.0,0.000177,2]
[332636565,1721387433519,-1908.0,0.000177,2]
[332636566,1721387433529,-209.48505647,0.00018,2]
[332636567,1721387433539,-155.45794009,0.00018182,2]
[332636568,1721387433548,-3652.33606404,0.00018182,2]
[332636569,1721387433560,-858.16390953,0.00018182,2]
[332636570,1721387433580,-806.99862749,0.00018182,2]
[332636571,1721387433592,-266.53614722,0.00018182,2]
[332636572,1721387433604,-315.7485,0.00018182,2]
[332636580,1721387438278,-1989.47898931,0.0001783,2]
[332636581,1721387438351,-981.55224733,0.0001783,2]
[332636582,1721387438363,-25.74734336,0.0001783,2]
[332636583,1721387438372,-14716.19168915,0.00018182,2]
[332636584,1721387438384,-4139.06589724,0.00018182,2]
[332636585,1721387438393,-280.57333383,0.00018349,2]
[332636586,1721387438402,-586.27,0.00018492,2]
[332636587,1721387438411,-1000.0,0.00018549,2]
[332636588,1721387438421,-375.64,0.00018979,2]
[332636589,1721387438430,-250.0,0.00019,2]
[332636590,1721387438439,-1413.69104925,0.00019117,2]
[332636591,1721387438449,-163.29492164,0.00019246,2]
[332636592,1721387438460,-659.70507836,0.00019246,2]
[332636593,1721387438470,-455.39912448,0.000195,2]
[332636594,1721387438565,-1451.33807564,0.000195,2]
[332636595,1721387438576,-734.89712077,0.000195,2]
[332636596,1721387438588,-1280.11647833,0.000195,2]
[332636597,1721387438597,-155.0,0.00020191,2]
[332636598,1721387438607,-1385.54955395,0.000202,2]
[332636599,1721387438618,-193.45044605,0.000202,2]
[332636600,1721387438627,-2996.77857,0.0002033,2]
[332636601,1721387438637,-227.43774807,0.00020439,2]
[332636602,1721387438647,-1017.0,0.000205,2]
[332636603,1721387438656,-1000.0,0.0002061,2]
[332636604,1721387438666,-586.27,0.00020756,2]
[332636605,1721387438675,-280.57333383,0.00020799,2]
[332636606,1721387438684,-165.3,0.0002082,2]
[332636607,1721387438694,-173.49,0.00020845,2]
[332636608,1721387438703,-15017.99975816,0.00021,2]
[332636609,1721387438712,-300.0,0.00021,2]
[332636610,1721387438722,-721.01834955,0.00021021,2]
[332636611,1721387438732,-1152.0,0.0002107,2]
[332636612,1721387438743,-375.64,0.00021088,2]
[332636613,1721387438754,-1413.69104925,0.00021166,2]
[332636614,1721387438763,-1062.35322101,0.00021569,2]
[332636615,1721387438775,-8152.30575748,0.00021569,2]
[332636616,1721387438786,-785.34102151,0.00021569,2]
[332636617,1721387438795,-151.37,0.00021644,2]
[332636618,1721387438804,-157.07,0.00021644,2]
[332636619,1721387438813,-353.0,0.00021644,2]
[332636620,1721387438823,-159.95,0.00021918,2]
[332636621,1721387438831,-2515.47398675,0.0002199,3]
[332636622,1721387438843,-792.29140115,0.0002199,3]
[332636623,1721387438853,-931.80698988,0.00022,2]
[332636624,1721387438864,-765.09717283,0.00022,2]
[332636721,1721387440360,-1001.30950324,0.00022,2]
[332636722,1721387440371,-921.3,0.00022,2]
[332636723,1721387440383,-923.15264686,0.00022,2]
[332636724,1721387440394,-602.00767301,0.00022,2]
[332636725,1721387440405,-700.75770547,0.00022,2]
[332636726,1721387440416,-394.9925689,0.00022,2]
[332636727,1721387440454,-8777.57549797,0.00022,2]
[332636728,1721387440464,-3307.7653879,0.00022184,3]
[332636729,1721387440473,-3280.0,0.00022194,2]
[332636730,1721387440482,-150.0,0.00022194,2]
[332636731,1721387440492,-1834.378,0.00022194,2]
[332636732,1721387440501,-1201.0,0.00022194,2]
[332636733,1721387440511,-4045.902,0.00022194,2]
[332636734,1721387440520,-1667.0,0.00022194,2]
[332636735,1721387440530,-2807.672,0.00022194,2]
[332636736,1721387440539,-1072.0,0.00022394,2]
[332636737,1721387440548,-150.0,0.00022488,4]
[332636738,1721387440558,-164.19,0.00022548,2]
[332636739,1721387440567,-1000.0,0.00022671,2]
[332636740,1721387440576,-158.70103192,0.0002275,2]
[332636741,1721387440586,-298.7669187,0.0002275,2]
[332636742,1721387440595,-2996.77858,0.0002283,2]
[332636743,1721387440605,-4961.64808185,0.00022884,3]
[332636744,1721387440614,-366.312,0.00022894,2]
[332636745,1721387440623,-1829.0,0.00022894,2]
[332636746,1721387440632,-1661.0,0.00022894,2]
[332636747,1721387440641,-1313.232,0.00022894,2]
[332636748,1721387440651,-624.943,0.00022894,2]
[332636749,1721387440660,-818.902,0.00022894,2]
[332636750,1721387440670,-203.574,0.00022894,2]
[332636751,1721387440679,-445.299,0.00022894,2]
[332636752,1721387440688,-455.316,0.00022894,2]
[332636753,1721387440698,-151.229,0.00022894,2]
[332636754,1721387440708,-549.0,0.00022894,2]
[332636755,1721387440717,-2380.0,0.00022894,2]
[332636756,1721387440727,-558.88,0.0002295,2]
[332636757,1721387440736,-3307.7653879,0.0002299,3]
[332636758,1721387440746,-15017.99975816,0.00023,2]
[332636759,1721387440756,-350.0,0.00023,2]
[332636760,1721387440765,-586.27,0.00023019,2]
[332636761,1721387440774,-375.64,0.00023196,2]
[332636762,1721387440783,-1653.88269395,0.00023205,3]
[332636763,1721387440793,-1413.69104925,0.00023215,2]
[332636765,1721387440803,-280.57333383,0.00023249,2]
[332636767,1721387440812,-300.0,0.0002337,2]
[332636769,1721387440821,-294.11327857,0.0002337,2]
[332636772,1721387440835,-760.46672143,0.0002337,2]
[332636774,1721387440844,-198.81,0.0002368,2]
[332636776,1721387440854,-150.0,0.00023737,4]
[332636778,1721387440863,-321.74417407,0.000239,2]
[332636780,1721387440872,-832.89,0.00023945,2]
[332636782,1721387440882,-1665.78,0.00023945,2]
[332636784,1721387440891,-525.75,0.00023945,2]
[332636786,1721387440901,-833.09,0.00023945,2]
[332636788,1721387440910,-12124.71820548,0.0002399,3]
[332636789,1721387440921,-1873.3,0.0002399,3]
[332636790,1721387441204,-5848.57412192,0.0002399,3]
[332636791,1721387441214,-1067.69,0.0002399,2]
[332636792,1721387441224,-1067.69,0.0002399,2]
[332636793,1721387441234,-155.0,0.00024,2]
[332636794,1721387441245,-4594.7214996,0.00024,2]
[332636795,1721387441549,-4302.89567398,0.00024,2]
[332636796,1721387441561,-488.2266729,0.00024,2]
[332636828,1721387444011,-1079.31918,0.00015,2]
[332636830,1721387444022,-23595.95570665,0.00015,2]
[332636832,1721387444032,-265.02858549,0.00017399,2]
[332636834,1721387444044,-28077.88417786,0.00018182,2]
[332636836,1721387444055,-164.68277388,0.00018182,2]
[332636838,1721387444064,-5632.15591168,0.00024,2]
[332636840,1721387444074,-34946.00072552,0.00024,2]
[332636842,1721387444083,-21108.76,0.00024,2]
[332636844,1721387444093,-151.0,0.00024,7]
[332636846,1721387444103,-151.0,0.00024,7]
[332636848,1721387444112,-151.0,0.00024,7]
[332636850,1721387444121,-151.0,0.00024,7]
[332636852,1721387444131,-151.0,0.00024,7]
[332636854,1721387444140,-151.0,0.00024,7]
[332636855,1721387444151,-151.0,0.00024,7]
[332636856,1721387444160,-293.451102,0.00024,7]
[332636857,1721387444169,-151.0,0.00024,7]
[332636858,1721387444178,-372.672885,0.00024,7]
[332636859,1721387444188,-372.672885,0.00024,7]
[332636860,1721387444198,-1653.88269395,0.00024083,3]
[332636861,1721387444210,-274.35835659,0.0002412,2]
[332636862,1721387444220,-160.21296084,0.0002412,2]
[332636863,1721387444231,-158.20995022,0.0002412,2]
[332636864,1721387444241,-169.18,0.00024187,2]
[332636865,1721387444252,-843.8,0.00024192,2]
[332636866,1721387444263,-8269.41346975,0.00024247,3]
[332636867,1721387444272,-1067.69,0.00024247,2]
[332636868,1721387444282,-500.236904,0.00024257,7]
[332636869,1721387444292,-500.236904,0.00024257,7]
[332636870,1721387444302,-284.84161,0.00024257,7]
[332636871,1721387444312,-284.84161,0.00024257,7]
[332636872,1721387444322,-151.0,0.00024257,7]
[332636873,1721387444331,-151.0,0.00024257,7]
[332636874,1721387444341,-206.804374,0.00024257,7]
[332636875,1721387444350,-151.0,0.00024257,7]
[332636876,1721387444360,-151.0,0.00024257,7]
[332636877,1721387444370,-155.14393,0.00024257,7]
[332636878,1721387444379,-151.0,0.00024257,7]
[332636879,1721387444389,-151.0,0.000244,7]
[332636880,1721387444399,-162.604777,0.000244,7]
[332636881,1721387444408,-162.604777,0.000244,7]
[332636882,1721387444418,-151.0,0.000244,7]
[332636883,1721387444428,-600.0,0.000244,8]
[332636884,1721387444438,-160.21296186,0.00024413,2]
[332636885,1721387444448,-200.0,0.00024413,2]
[332636886,1721387444458,-155.20622844,0.00024413,2]
[332636887,1721387444468,-300.33921039,0.00024413,2]
[332636888,1721387444477,-160.21891904,0.00024413,2]
[332636889,1721387444487,-160.21215222,0.00024413,2]
[332636890,1721387444496,-150.20030938,0.00024413,2]
[332636891,1721387444508,-1200.0,0.000245,8]
[332636892,1721387444518,-174.956447,0.00024502,7]
[332636893,1721387444528,-1800.0,0.000246,8]
[332636894,1721387444542,-2400.0,0.000247,9]
[332636895,1721387444552,-1000.0,0.00024732,2]
[332636896,1721387444562,-159.582634,0.00024732,7]
[332636897,1721387444572,-151.0,0.00024732,7]
[332636898,1721387444581,-3000.0,0.000248,9]
[332636899,1721387444591,-999.999999,0.0002488,2]
[332636900,1721387444600,-1771.7405,0.000249,2]
[332636901,1721387444610,-171.61014676,0.000249,2]
[332636902,1721387444620,-271.57635875,0.000249,2]
[332636903,1721387444630,-600.0,0.000249,9]
[332636904,1721387444639,-167.66739738,0.000249,2]
[332636905,1721387444649,-209.2893539,0.000249,2]
[332636906,1721387444658,-182.93515178,0.000249,4]
[332636907,1721387444668,-1106.12447971,0.000249,2]
[332636908,1721387444678,-949.49540336,0.000249,2]
[332636909,1721387444689,-194.85349123,0.000249,2]
[332636910,1721387444698,-3392.01774372,0.000249,2]
[332636911,1721387444707,-833.09,0.00024904,2]
[332636912,1721387444717,-419.88,0.00024904,2]
[332636913,1721387444727,-832.29,0.00024904,2]
[332636914,1721387444739,-419.88,0.00024904,2]
[332636915,1721387444748,-315.67,0.00024904,2]
[332636916,1721387444758,-419.88,0.00024904,2]
[332636917,1721387444768,-419.88,0.00024904,2]
[332636918,1721387444777,-419.88,0.00024904,2]
[332636919,1721387444787,-220.81,0.00024904,2]
[332636920,1721387444796,-890.5981887,0.00024919,2]
[332636921,1721387444806,-165.3,0.00024983,2]
[332636922,1721387444815,-184.09406241,0.00024986,4]
[332636923,1721387444825,-1067.69,0.0002499,2]
[332636924,1721387444834,-1067.69,0.0002499,2]
[332636925,1721387444843,-151.0,0.0002499,7]
[332636926,1721387444853,-151.0,0.0002499,7]
[332636927,1721387444862,-372.672885,0.0002499,7]
[332636928,1721387444871,-372.672885,0.0002499,7]
[332636929,1721387444880,-292.33438899,0.00024996,2]
[332636930,1721387444890,-2278.56236496,0.00024996,2]
[332636931,1721387444899,-5847.5292612,0.00024997,2]
[332636932,1721387444909,-500.0,0.00024999,2]
[332636933,1721387444919,-150.0,0.00024999,2]
[332636934,1721387444928,-500.0,0.00024999,2]
[332636935,1721387444939,-206.57672232,0.00024999,2]
[332636936,1721387444948,-163.9556134,0.00024999,2]
[332636937,1721387444962,-166.2561171,0.00024999,2]
[332636938,1721387444975,-993285.62333623,0.00024999,11]
[332636939,1721387444985,-578702.46202072,0.00025,5]
[332636940,1721387445026,-1959.46551503,0.00025,5]
[332636941,1721387445037,-1514398.09991254,0.00025,5]
[332636942,1721387445050,-6182.23250689,0.00025,5]
[332636943,1721387445062,-661.66608519,0.00025,5]
[332636944,1721387445073,-1377.53454,0.00025,5]
[332636949,1721387447388,-300.03264459,0.00018182,2]
[332636950,1721387447397,-833.09,0.00023945,2]
[332636951,1721387447407,-419.88,0.00023945,2]
[332636952,1721387447416,-31839.87865315,0.00025,5]
[332636953,1721387447431,-9252.54199913,0.00025,5]
[332636954,1721387447442,-690.90239874,0.00025,5]
[332636955,1721387447453,-3929.113636,0.00025,5]
[332636956,1721387447465,-782.42653634,0.00025,5]
[332636957,1721387447477,-313.354957,0.00025,5]
[332636959,1721388299266,5807.67,0.00025,120]
[332636960,1721388329114,1698.04919544,0.000118,2]
[332636961,1721388335796,2782.30011665,0.00011,2]
[332636964,1721388412493,19868.89612068,0.00011,2]
[332636965,1721388413961,7595.42725403,0.00011,2]
[332636967,1721388442722,244.43180285,0.000101,2]
[332636968,1721388449833,796.97341307,0.00011,2]
[332636970,1721388466584,300.03264459,0.00011,2]
[332636972,1721388479286,10775.20692586,0.0001,2]
[332636976,1721388562323,798.15889612,0.0001,2]
[332636977,1721388574906,500.0,0.00011959,2]
[332636978,1721388625125,413.37996369,0.00011959,2]
[332636996,1721388632132,-155.0,0.00012121,2]
[332636997,1721388632141,-603.46063196,0.00013237,2]
[332636998,1721388632151,-715.22272661,0.00013237,2]
[332636999,1721388632161,-569.93988243,0.00013237,2]
[332637000,1721388632170,-893.35688824,0.00013283,2]
[332637001,1721388632179,-155.53218327,0.00013297,2]
[332637002,1721388632187,-112.45609603,0.00013304,2]
[332637003,1721388632295,-328.64556,0.00013304,2]
[332637004,1721388632309,-577.76847127,0.00013304,2]
[332637005,1721388632320,-4073.98053581,0.00013304,2]
[332637006,1721388632329,-427.19,0.00013378,2]
[332637007,1721388632341,-268.36,0.0001361,2]
[332637008,1721388632351,-10408.94,0.00013699,2]
[332637009,1721388632360,-150.0,0.00013719,2]
[332637010,1721388632370,-15457.78265303,0.0001372,2]
[332637011,1721388632380,-1109.8,0.0001373,2]
[332637012,1721388632389,-79663.0,0.0001386,2]
[332637013,1721388632398,-13108.33277544,0.00013879,2]
[332637014,1721388632407,-3189.7640075,0.00013889,2]
[332637015,1721388632416,-344.4,0.0001389,2]
[332637016,1721388632426,-253.941,0.00013899,2]
[332637017,1721388632435,-254.3939982,0.000139,2]
[332637018,1721388632445,-321.96333992,0.000139,2]
[332637019,1721388632454,-4000.9216663,0.000139,2]
[332637020,1721388632464,-9255.41024212,0.00013979,2]
[332637021,1721388632473,-9255.41024212,0.00013979,2]
[332637022,1721388632482,-8765.68,0.00013996,2]
[332637023,1721388632495,-5609.58158913,0.00013996,2]
[332637024,1721388632504,-500.0,0.00013999,2]
[332637025,1721388632515,-260.2929079,0.00013999,2]
[332637026,1721388632525,-204.66925541,0.00013999,2]
[332637027,1721388632536,-500.0,0.00013999,2]
[332637028,1721388632545,-500.0,0.00013999,2]
[332637029,1721388632555,-478.94522347,0.00013999,2]
[332637030,1721388632567,-500.0,0.00013999,2]
[332637031,1721388632576,-624.41060655,0.00013999,2]
[332637032,1721388632586,-500.0,0.00013999,2]
[332637033,1721388632595,-500.0,0.00013999,2]
[332637034,1721388632605,-427.03698551,0.00013999,2]
[332637035,1721388632614,-499.99,0.00013999,2]
[332637036,1721388632623,-15293.58132436,0.00014,2]
[332637037,1721388632635,-45186.23371037,0.00014,2]
[332637041,1721388637735,-18666.2,0.00013699,2]
[332637042,1721388637746,-632.99693558,0.000139,2]
[332637043,1721388637755,-1475357.13937649,0.00014,2]
[332637044,1721388637767,-600.0,0.00014,2]
[332637045,1721388637779,-597.4,0.00014,2]
[332637046,1721388637791,-2709.48663959,0.00014,2]
[332637047,1721388637803,-59607.63042935,0.00014,2]
[332637048,1721388637852,-614.32,0.00014,2]
[332637049,1721388637895,-8491.66447959,0.00014,2]
[332637050,1721388638013,-31400.0,0.00014,2]
[332637062,1721388639622,-531.85,0.00013662,2]
[332637063,1721388639631,-737.4163198,0.000139,2]
[332637064,1721388639641,-2095.28223259,0.00014,2]
[332637065,1721388639652,-769.40917737,0.00014,2]
[332637066,1721388639664,-413.12516498,0.00014,2]
[332637067,1721388639675,-961.98996884,0.00014,2]
[332637068,1721388639686,-768.95049403,0.00014,2]
[332637069,1721388639698,-9096.64373114,0.00014,2]
[332637070,1721388639709,-8947.21879473,0.00014,2]
[332637071,1721388639724,-8943.78386462,0.00014,2]
[332637072,1721388639735,-9077.54866152,0.00014,2]
[332637073,1721388639747,-8943.84023489,0.00014,2]
[332637074,1721388639767,-639.14654176,0.00014,2]
[332637075,1721388639778,-492.62681269,0.00014,2]
[332637076,1721388639789,-1630.6,0.00014,2]
[332637077,1721388639801,-58711.5819714,0.00014,2]
[332637078,1721388639821,-14732.19448898,0.00014,2]
[332637079,1721388639836,-449.03088406,0.00014,2]
[332637087,1721388642630,-255.40525301,0.00013302,2]
[332637089,1721388642640,-200.54451933,0.00013999,2]
[332637091,1721388642650,-4866.82117506,0.00013999,2]
[332637092,1721388642660,-910493.02980111,0.00014,2]
[332637093,1721388642672,-319.999995,0.00014,2]
[332637094,1721388642684,-653.31270692,0.00014,2]
[332637095,1721388642824,-389.71353879,0.00014,2]
[332637096,1721388642836,-265.6000002,0.00014,2]
[332637097,1721388642847,-58621.91566837,0.00014,2]
[332637098,1721388642875,-548.9,0.00014,2]
[332637101,1721388645551,-4036.61298945,0.00014,2]
[332637102,1721388645563,-3946.85157832,0.00014,2]
[332637103,1721388645576,-56910.1194644,0.00014,2]
[332637104,1721388645771,-33337.72583788,0.00014,2]
[332637105,1721388645791,-10463.70163011,0.00014,2]
[332637106,1721388645803,-975.861078,0.00014,2]
[332637107,1721388645873,-414.86354645,0.00014,2]
[332637108,1721388645884,-644.28818466,0.00014,2]
[332637111,1721388720849,-848.21462964,0.000139,2]
[332637112,1721388720871,-321.96333989,0.000139,2]
[332637113,1721388720892,-206.86678496,0.00013999,2]
[332637114,1721388720913,-166.02605396,0.00013999,2]
[332637115,1721388720939,-1154456.92919155,0.00014,2]
[332637116,1721389220369,505.25,0.00010966,2]
[332637117,1721389314032,105979.66659987,0.00010966,2]
[332637182,1721389810172,479.98,0.00010993,2]
[332637198,1721389831664,-2575.21,0.00012804,2]
[332637199,1721389831674,-164.32825762,0.00012835,2]
[332637200,1721389831683,-599.58301876,0.00012928,2]
[332637201,1721389831692,-500.0,0.00012975,3]
[332637202,1721389831702,-380.39,0.00012977,2]
[332637203,1721389831713,-165.12,0.0001298,2]
[332637204,1721389831723,-200.0,0.00012981,2]
[332637205,1721389831735,-264.43,0.00012995,2]
[332637206,1721389831746,-1000.0,0.00013005,2]
[332637207,1721389831756,-300.0,0.00013031,2]
[332637208,1721389831768,-23900.0,0.00013032,2]
[332637209,1721389831778,-167.36,0.00013047,2]
[332637210,1721389831787,-433.79,0.00013048,2]
[332637211,1721389831796,-155.17695467,0.00013066,2]
[332637212,1721389831808,-150.0,0.00013096,2]
[332637213,1721389831818,-150.0,0.0001311,2]
[332637214,1721389831827,-13163.11,0.00013111,2]
[332637215,1721389831836,-152.35,0.00013112,2]
[332637216,1721389831846,-500.0,0.00013124,2]
[332637217,1721389831855,-1738.31,0.00013124,2]
[332637218,1721389831865,-827.28,0.00013124,2]
[332637219,1721389831874,-169.56,0.00013135,2]
[332637220,1721389831884,-150.0,0.00013142,2]
[332637221,1721389831894,-499.99,0.00013162,2]
[332637222,1721389831903,-648.70102982,0.00013165,2]
[332637223,1721389831912,-479.98,0.00013257,2]
[332637224,1721389831922,-171.00806135,0.00013292,2]
[332637225,1721389831931,-204.09,0.00013316,2]
[332637226,1721389831941,-5394.61164962,0.00013378,2]
[332637227,1721389831951,-9356.25279159,0.00013378,2]
[332637228,1721389831960,-5609.58158913,0.00013479,2]
[332637229,1721389831970,-9255.41024212,0.00013479,2]
[332637230,1721389831980,-4469.17282066,0.00013483,2]
[332637231,1721389831991,-28077.88417786,0.0001367,2]
[332637232,1721389832002,-465.43893877,0.00013698,2]
[332637233,1721389832011,-200.0,0.00013699,2]
[332637234,1721389832020,-451.7,0.00013699,2]
[332637235,1721389832030,-1500.0,0.00013699,5]
[332637237,1721389832039,-2044.95,0.00013699,2]
[332637239,1721389832048,-250.0,0.00013699,2]
[332637241,1721389832058,-331.6237,0.00013796,2]
[332637243,1721389832068,-1286.0501,0.00013796,2]
[332637245,1721389832079,-2450.376,0.000138,2]
[332637247,1721389832090,-3030.45871521,0.000138,2]
[332637249,1721389832100,-164.32825762,0.000138,2]
[332637251,1721389832111,-348.01014943,0.00013834,2]
[332637253,1721389832120,-1072.8576284,0.00013889,2]
[332637255,1721389832130,-30653.9396,0.00013896,2]
[332637257,1721389832141,-1500.0,0.00013899,2]
[332637260,1721389832151,-5136.9101,0.000139,2]
[332637262,1721389832161,-3762.123,0.000139,2]
[332637264,1721389832170,-958.58717033,0.00013979,2]
[332637266,1721389832180,-11815.04696544,0.00014,2]
[332637268,1721389832189,-300.0,0.00014,2]
[332637270,1721389832199,-1735.0373,0.00014,2]
[332637272,1721389832208,-540.84,0.00014242,2]
[332637274,1721389832217,-540.84,0.00014245,2]
[332637276,1721389832226,-255.0,0.00014246,2]
[332637278,1721389832235,-540.84,0.00014249,2]
[332637280,1721389832244,-540.84,0.00014253,2]
[332637282,1721389832254,-540.84,0.00014257,2]
[332637284,1721389832263,-540.84,0.0001426,2]
[332637285,1721389832273,-540.84,0.00014264,2]
[332637287,1721389832282,-540.84,0.00014268,2]
[332637289,1721389832291,-540.84,0.00014272,2]
[332637291,1721389832300,-540.84,0.00014275,2]
[332637293,1721389832309,-540.84,0.00014279,2]
[332637295,1721389832319,-540.84,0.00014283,2]
[332637305,1721389832619,-270.109062,0.00014283,2]
[332637306,1721389832637,-540.84,0.00014287,2]
[332637307,1721389832648,-540.84,0.0001429,2]
[332637308,1721389832660,-540.84,0.00014294,2]
[332637309,1721389832671,-540.84,0.00014298,2]
[332637310,1721389832682,-540.84,0.00014302,2]
[332637311,1721389832692,-540.84,0.00014305,2]
[332637312,1721389832702,-540.84,0.00014309,2]
[332637313,1721389832712,-540.84,0.00014313,2]
[332637314,1721389832722,-281.27947951,0.0001443,2]
[332637315,1721389832732,-401.86676112,0.0001443,2]
[332637316,1721389832742,-196.65850358,0.00014451,2]
[332637317,1721389832752,-347.08229106,0.00014451,2]
[332637318,1721389832763,-356.83039399,0.00014519,2]
[332637319,1721389832775,-528.03546027,0.00014579,2]
[332637320,1721389832785,-179.46941794,0.00014579,2]
[332637321,1721389832796,-380.39,0.000146,2]
[332637322,1721389832805,-1000.0,0.00014631,2]
[332637323,1721389832815,-545.62075935,0.00014667,2]
[332637324,1721389832826,-187.82,0.00014779,2]
[332637325,1721389832838,-492.74605523,0.00014789,2]
[332637326,1721389832847,-1344.19139935,0.00014789,2]
[332637327,1721389832857,-155.0,0.00014789,2]
[332637328,1721389832868,-367.23313419,0.00014896,2]
[332637329,1721389832877,-890.50362859,0.00014899,2]
[332637330,1721389832887,-550.80488964,0.000149,2]
[332637331,1721389832899,-321.96333989,0.000149,2]
[332637332,1721389832911,-210.01644036,0.0001493,2]
[332637333,1721389832922,-1578.23725428,0.00014988,2]
[332637334,1721389832932,-166562.947614,0.0001499,2]
[332637335,1721389832942,-155.0,0.00014999,2]
[332637336,1721389832953,-108754.35833128,0.00015,2]
[332637337,1721389832971,-540.396828,0.00015,2]
[332637338,1721389832982,-399.20391486,0.00015,2]
[332637339,1721389833051,-119989.49829514,0.00015,2]
[332637340,1721389833063,-6701.29860768,0.00015,2]
[332637341,1721389833074,-442.56124562,0.00015,2]
[332637345,1721389837615,-5609.58158913,0.00013398,2]
[332637346,1721389837625,-4469.17282066,0.00013479,2]
[332637347,1721389837635,-17854.38559014,0.00015,2]
[332637348,1721389837647,-2168.73738276,0.00015,2]
[332637349,1721389837659,-416.89261724,0.00015,2]
[332637350,1721389837827,-1300.04,0.00015,2]
[332637351,1721389837839,-672.16249084,0.00015,2]
[332637352,1721389837937,-1025.62277443,0.00015,2]
[332637460,1721389839669,-367.23313419,0.00014789,2]
[332637461,1721389839678,-10409.21280981,0.00015,2]
[332637462,1721389839721,-598.35641594,0.00015,2]
[332637463,1721389839827,-1015.75187423,0.00015,2]
[332637475,1721389842655,-74361.02570971,0.00015,2]
[332637476,1721389842664,-150.0,0.00015,2]
[332637477,1721389842674,-5552.09825379,0.00015099,2]
[332637478,1721389842684,-156.37149659,0.00015369,2]
[332637479,1721389842693,-433.0,0.00015442,2]
[332637480,1721389842702,-479.98,0.00015521,2]
[332637481,1721389842711,-173.49,0.00015762,2]
[332637482,1721389842721,-231.2538594,0.0001587,2]
[332637483,1721389842731,-3030.45871516,0.00016,2]
[332637484,1721389842740,-380.39,0.00016222,2]
[332637485,1721389842749,-1000.0,0.00016257,2]
[332637486,1721389842758,-167.36,0.00016309,2]
[332637487,1721389842768,-5552.09825379,0.0001634,2]
[332637488,1721389842777,-1265.58472584,0.00016358,2]
[332637489,1721389842787,-1322.91,0.00016438,2]
[332637490,1721389842796,-5552.09825379,0.00016591,2]
[332637491,1721389842805,-6086.68230917,0.00016598,2]
[332637492,1721389842814,-377.0,0.00016743,2]
[332637493,1721389842824,-200.0,0.00016953,2]
[332637494,1721389842833,-2498.73739198,0.00017,2]
[332637495,1721389842843,-200.0,0.00017,2]
[332637496,1721389842852,-5552.09825379,0.00017265,2]
[332637497,1721389842862,-550.80488964,0.000174,2]
[332637498,1721389842871,-11104.1965076,0.00017513,2]
[332637499,1721389842880,-14366.25712607,0.00017523,2]
[332637500,1721389842890,-479.98,0.00017785,2]
[332637501,1721389842899,-525.0,0.000178,2]
[332637502,1721389842908,-380.39,0.00017844,2]
[332637503,1721389842918,-1000.0,0.00017882,2]
[332637504,1721389842927,-3030.45871516,0.000182,2]
[332637505,1721389842937,-1288.85358658,0.00018599,2]
[332637506,1721389842946,-22208.3930152,0.0001876,2]
[332637507,1721389842956,-180.49006739,0.00018779,2]
[332637508,1721389842965,-85732.62444322,0.0001878,2]
[332637509,1721389842974,-250.0,0.00019,2]
[332637510,1721389842983,-1735.0373,0.00019,2]
[332637511,1721389842994,-303.17242072,0.00019045,2]